{"text_format":"1","workbook":"xlsx","n_sheets":1,"sheets":["план"],"not_rendered":{"charts":0,"images":15,"macros":1,"external_links":1,"defined_names":14,"comments":0,"pivot_tables":0},"unopened":[],"bounds":{"document_bytes":16777216,"sheet_cells":100000,"rows_first":2000,"rows_last":500,"rows_between":2000,"halvings":0,"cell_chars":16384,"cell_head_chars":4096},"cells_cut":0,"cells_raw":0,"read":"whole","date_system":"1900"}

{"sheet":"план","index":0,"n_rows":26,"n_cols":10,"rows_kept":26,"cut":false,"hidden":false,"merged":[[0,0,1,5],[4,2,4,3],[4,4,4,5],[5,2,5,3],[11,2,11,3],[2,0,15,0],[6,2,7,3],[8,2,10,3],[2,1,15,1],[2,2,2,3],[3,2,3,3],[13,2,13,3],[14,2,14,3],[15,2,15,3],[12,2,12,3]]}
["Здесь вместо этого текста напишите 1 чтобы формула посчитала."]
[null,null,null,null,null,null,null,null,null,"тема:    Вызов и вставка в таблицу окна с текстом"]
["2014-01-06",null,null,null,{"$f":"CONCATENATE(#REF!,\" \",#REF!)","v":{"$error":"#REF!"}},{"$f":"CONCATENATE(#REF!,\" \",#REF!)","v":{"$error":"#REF!"}}]
[null,null,null,null,{"$f":"IF(ISERROR(VLOOKUP(VALUE($A$3)&\"и\",#REF!,2,0))=TRUE,\"\",VLOOKUP(VALUE($A$3)&\"и\",#REF!,2,0))","v":""},{"$f":"IF(ISERROR(VLOOKUP(VALUE($A$3)&\"ч\",#REF!,2,0))=TRUE,\"\",\"чтец: \" & VLOOKUP(VALUE($A$3)&\"ч\",#REF!,2,0))","v":""}]
[null,null,null,null,{"$f":"IF(ISERROR(VLOOKUP(VALUE($A$3)&\"п\",#REF!,2,0))=TRUE,\"\",VLOOKUP(VALUE($A$3)&\"п\",#REF!,2,0))","v":""},null,null,null,null,"Доброго дня всем! Помогите, пожалуйста, разобратся"]
[null,null,null,null,{"$f":"IF(ISERROR(VLOOKUP(VALUE($A$3)&\"1.1.\",#REF!,2,0))=TRUE,\"\",VLOOKUP(VALUE($A$3)&\"1.1.\",#REF!,2,0))","v":""},{"$f":"IF(ISERROR(VLOOKUP(VALUE($A$3)&\"1\"&\".\"&\"2.\",#REF!,2,0))=TRUE,\"\",VLOOKUP(VALUE($A$3)&\"1\"&\".\"&\"2.\",#REF!,2,0))","v":""},null,{"$f":"IF(A1=1,\"Конгресс\",\"\")","v":""},null,"На примере этой малой части файла, хочу понять,"]
[null,null,null,null,{"$f":"IF(ISERROR(VLOOKUP(VALUE($A$3)&\"2\"&\".\"&\"1.\",#REF!,2,0))=TRUE,\"\",VLOOKUP(VALUE($A$3)&\"2\"&\".\"&\"1.\",#REF!,2,0))","v":""},{"$f":"IF(ISERROR(VLOOKUP(VALUE($A$3)&\"2\"&\".\"&\"2.\",#REF!,2,0))=TRUE,\"\",VLOOKUP(VALUE($A$3)&\"2\"&\".\"&\"2.\",#REF!,2,0))","v":""},null,null,null,"как это сделать в своей работе."]
[null,null,null,null,{"$f":"IF(ISERROR(VLOOKUP(VALUE($A$3)&\"2п\"&\".\"&\"1.\",#REF!,2,0))=TRUE,\"\",VLOOKUP(VALUE($A$3)&\"2п\"&\".\"&\"1.\",#REF!,2,0))","v":""},{"$f":"IF(ISERROR(VLOOKUP(VALUE($A$3)&\"2п\"&\".\"&\"2.\",#REF!,2,0))=TRUE,\"\",VLOOKUP(VALUE($A$3)&\"2п\"&\".\"&\"2.\",#REF!,2,0))","v":""},null,"Повторение",null,"Суть в следующем: При нажатии на кнопку ''Kongress\" "]
[null,null,null,null,{"$f":"IF(ISERROR(VLOOKUP(VALUE($A$3)&\"3\"&\".\"&\"1.\",#REF!,2,0))=TRUE,\"\",VLOOKUP(VALUE($A$3)&\"3\"&\".\"&\"1.\",#REF!,2,0))","v":""},{"$f":"IF(ISERROR(VLOOKUP(VALUE($A$3)&\"3\"&\".\"&\"2.\",#REF!,2,0))=TRUE,\"\",VLOOKUP(VALUE($A$3)&\"3\"&\".\"&\"2.\",#REF!,2,0))","v":""},null,null,null,"открывается, в соответствующем месте большое окно"]
[null,null,null,null,{"$f":"IF(ISERROR(VLOOKUP(VALUE($A$3)&\"3п\"&\".\"&\"1.\",#REF!,2,0))=TRUE,\"\",VLOOKUP(VALUE($A$3)&\"3п\"&\".\"&\"1.\",#REF!,2,0))","v":""},{"$f":"IF(ISERROR(VLOOKUP(VALUE($A$3)&\"3п\"&\".\"&\"2.\",#REF!,2,0))=TRUE,\"\",VLOOKUP(VALUE($A$3)&\"3п\"&\".\"&\"2.\",#REF!,2,0))","v":""},null,null,null,"с текстом в ней \"Конгресс\".При повторном нажатии на "]
[null,null,null,null,null,null,null,null,null,"эту же кнопку окно ичезает."]
[null,null,null,null,{"$f":"IF(ISERROR(VLOOKUP(VALUE($A$3)&\"+1\",#REF!,2,0))=TRUE,\"\",VLOOKUP(VALUE($A$3)&\"+1\",#REF!,2,0))","v":""},"Флор М / Визе С",null,null,null,"Тоже самое при нажатии на кнопку \"Wiederholung\", только"]
[null,null,null,null,{"$f":"IF(ISERROR(VLOOKUP(VALUE($A$3)&\"+2\",#REF!,2,0))=TRUE,\"\",VLOOKUP(VALUE($A$3)&\"+2\",#REF!,2,0))","v":""},null,null,{"$f":"{0;\"Повторение\"}","v":0},null,"там открывается другое окно \"Повторение\"."]
[null,null,null,null,{"$f":"IF(ISERROR(VLOOKUP(VALUE($A$3)&\"+3\",#REF!,2,0))=TRUE,\"\",VLOOKUP(VALUE($A$3)&\"+3\",#REF!,2,0))","v":""},{"$f":"IF(ISERROR(VLOOKUP(VALUE($A$11)&\"1\"&\".\"&\"2.\",#REF!,2,0))=TRUE,\"\",VLOOKUP(VALUE($A$11)&\"1\"&\".\"&\"2.\",#REF!,2,0))","v":""}]
[null,null,null,null,{"$f":"IF(ISERROR(VLOOKUP(VALUE($A$3)&\"+4\",#REF!,2,0))=TRUE,\"\",VLOOKUP(VALUE($A$3)&\"+4\",#REF!,2,0))","v":""},{"$f":"IF(ISERROR(VLOOKUP(VALUE($A$11)&\"2\"&\".\"&\"2.\",#REF!,2,0))=TRUE,\"\",VLOOKUP(VALUE($A$11)&\"2\"&\".\"&\"2.\",#REF!,2,0))","v":""},null,null,null,"Хотел бы это использовать в своей работе,"]
[null,null,null,null,null,null,null,null,null,"Я понимаю, что здесь, при нажатии на кнопку запускается макрос"]
[{"$f":"[1]einstellungen!$C$2","v":{"$error":"#REF!"}},null,null,null,null,null,null,null,null,"Но я не могу видеть его, так как файл закрыт "]
[{"$f":"[1]einstellungen!$C$2","v":{"$error":"#REF!"}},null,null,null,null,null,null,null,null,"да к тому же с макросами я ещё не умею работать."]
[{"$f":"[1]einstellungen!$C$2","v":{"$error":"#REF!"}}]
[null,null,null,null,null,null,null,null,null,"Можно ли обойтись без макроса? В моём случае было бы идеально,"]
[null,null,null,null,null,null,null,null,null,"если в ячейке H6 появляется текст \"Конгресс\", то появляется это самое окно,"]
[null,null,null,null,null,null,null,null,null,"а если в ячейке H6 нет текста \"Конгресс\", то нет этого окна"]
[null,null,null,null,null,null,null,null,null,"Но если, это не возможно, то как выглядит сам этот макрос в оригинале"]
[null,null,null,null,null,null,null,null,null,"Заранее благодарен всем за помощь"]
[]
[null,null,null,null,null,null,null,null,null,"Porol: 1234"]